[Event "Titled Tuesday Blitz September 27 Early 2022"]
[White "Ciuffoletti, Paolo"]
[Black "Camacho Collados, Jose"]
[WhiteFideId "807630"]
[BlackFideId "2265427"]
[WhiteElo "2143"]
[BlackElo "2264"]
[Result "0-1"]
[Round "04"]
[TimeControl "180+1"]
[Date "2022.09.27"]
[WhiteClock "0:01:18"]
[BlackClock "0:02:23"]

1. e4 {[%clk 0:03:00]}  e5 {[%clk 0:02:40]} 2. Nf3 {[%clk 0:02:59]}  Nf6 {[%clk 0:02:40]} 3. Bc4 {[%clk 0:02:59]}  Nxe4 {[%clk 0:02:40]} 4. Nc3 {[%clk 0:02:58]}  Nxc3 {[%clk 0:02:40]} 5. dxc3 {[%clk 0:02:58]}  f6 {[%clk 0:02:40]} 6. Nh4 {[%clk 0:02:58]}  g6 {[%clk 0:02:40]} 7. f4 {[%clk 0:02:58]}  Qe7 {[%clk 0:02:40]} 8. f5 {[%clk 0:02:58]}  Qg7 {[%clk 0:02:40]} 9. fxg6 {[%clk 0:02:57]}  hxg6 {[%clk 0:02:41]} 10. Qg4 {[%clk 0:02:57]}  Kd8 {[%clk 0:02:41]} 11. Nxg6 {[%clk 0:02:41]}  d5 {[%clk 0:02:39]} 12. Qd1 {[%clk 0:02:25]}  Qxg6 {[%clk 0:02:37]} 13. Qxd5+ {[%clk 0:02:24]}  Bd6 {[%clk 0:02:35]} 14. Be3 {[%clk 0:02:19]}  Qxc2 {[%clk 0:02:31]} 15. O-O {[%clk 0:02:10]}  Nd7 {[%clk 0:02:30]} 16. Rf2 {[%clk 0:01:52]}  Qh7 {[%clk 0:02:29]} 17. h3 {[%clk 0:01:35]}  Nb6 {[%clk 0:02:29]} 18. Qd3 {[%clk 0:01:29]}  Qxd3 {[%clk 0:02:23]} 19. Bxd3 {[%clk 0:01:29]}  Nd5 {[%clk 0:02:23]} 20. Bd2 {[%clk 0:01:18]}  Bc5 {[%clk 0:02:23]} 0-1


[Site "https://www.chess.com"]

[Event "Titled Tuesday Blitz September 27 Early 2022"]
[White "Danielyan, Vahe"]
[Black "Gan-Od, Sereenen"]
[WhiteFideId "13304828"]
[BlackFideId "4901304"]
[WhiteElo "2421"]
[BlackElo "2316"]
[Result "1-0"]
[Round "04"]
[TimeControl "180+1"]
[Date "2022.09.27"]
[WhiteClock "0:01:38"]
[BlackClock "0:00:54"]

1. e4 {[%clk 0:02:38]}  c5 {[%clk 0:02:58]} 2. Nc3 {[%clk 0:02:35]}  Nc6 {[%clk 0:02:56]} 3. Bb5 {[%clk 0:02:35]}  Nd4 {[%clk 0:02:53]} 4. Nf3 {[%clk 0:02:35]}  Nxb5 {[%clk 0:02:52]} 5. Nxb5 {[%clk 0:02:36]}  a6 {[%clk 0:02:53]} 6. Nc3 {[%clk 0:02:36]}  d6 {[%clk 0:02:52]} 7. d4 {[%clk 0:02:36]}  cxd4 {[%clk 0:02:52]} 8. Qxd4 {[%clk 0:02:36]}  Nf6 {[%clk 0:02:52]} 9. Bg5 {[%clk 0:02:37]}  e5 {[%clk 0:02:50]} 10. Qd3 {[%clk 0:02:34]}  Be6 {[%clk 0:02:50]} 11. O-O-O {[%clk 0:02:32]}  Rc8 {[%clk 0:02:50]} 12. Kb1 {[%clk 0:02:30]}  b5 {[%clk 0:02:50]} 13. Nd5 {[%clk 0:02:26]}  Bxd5 {[%clk 0:02:50]} 14. exd5 {[%clk 0:02:27]}  Be7 {[%clk 0:02:49]} 15. Nd2 {[%clk 0:02:27]}  O-O {[%clk 0:02:45]} 16. h4 {[%clk 0:02:24]}  Nd7 {[%clk 0:02:44]} 17. Ne4 {[%clk 0:02:16]}  f6 {[%clk 0:02:43]} 18. Be3 {[%clk 0:02:14]}  Qa5 {[%clk 0:02:32]} 19. Ng3 {[%clk 0:02:12]}  g6 {[%clk 0:02:19]} 20. h5 {[%clk 0:02:11]}  f5 {[%clk 0:02:20]} 21. hxg6 {[%clk 0:02:11]}  hxg6 {[%clk 0:02:21]} 22. Rh6 {[%clk 0:02:05]}  Kg7 {[%clk 0:02:20]} 23. Rdh1 {[%clk 0:02:05]}  Rh8 {[%clk 0:02:15]} 24. Nxf5+ {[%clk 0:01:42]}  gxf5 {[%clk 0:01:26]} 25. Qxf5 {[%clk 0:01:42]}  Nf6 {[%clk 0:00:54]} 26. Qg6+ {[%clk 0:01:38]} 1-0


[Site "https://www.chess.com"]

[Event "Titled Tuesday Blitz September 27 Early 2022"]
[White "Devaev, Alexander"]
[Black "Krishnan, Varun"]
[WhiteFideId "4169395"]
[BlackFideId "5054508"]
[WhiteElo "2185"]
[BlackElo "2617"]
[Result "0-1"]
[Round "04"]
[TimeControl "180+1"]
[Date "2022.09.27"]
[WhiteClock "0:00:15"]
[BlackClock "0:00:04"]

1. Nf3 {[%clk 0:02:53]}  Nf6 {[%clk 0:02:57]} 2. c4 {[%clk 0:02:54]}  c6 {[%clk 0:02:54]} 3. e3 {[%clk 0:02:53]}  d5 {[%clk 0:02:54]} 4. b3 {[%clk 0:02:54]}  g6 {[%clk 0:02:54]} 5. Bb2 {[%clk 0:02:55]}  Bg7 {[%clk 0:02:54]} 6. d4 {[%clk 0:02:55]}  O-O {[%clk 0:02:55]} 7. Bd3 {[%clk 0:02:55]}  Bg4 {[%clk 0:02:53]} 8. Nbd2 {[%clk 0:02:56]}  Nbd7 {[%clk 0:02:52]} 9. O-O {[%clk 0:02:56]}  e6 {[%clk 0:02:50]} 10. Qc2 {[%clk 0:02:55]}  a5 {[%clk 0:02:49]} 11. h3 {[%clk 0:02:48]}  Bf5 {[%clk 0:02:47]} 12. e4 {[%clk 0:02:37]}  dxe4 {[%clk 0:02:46]} 13. Nxe4 {[%clk 0:02:37]}  Bxe4 {[%clk 0:02:44]} 14. Bxe4 {[%clk 0:02:38]}  Nxe4 {[%clk 0:02:44]} 15. Qxe4 {[%clk 0:02:38]}  a4 {[%clk 0:02:39]} 16. Qc2 {[%clk 0:02:11]}  b5 {[%clk 0:02:38]} 17. Ne5 {[%clk 0:01:36]}  Nxe5 {[%clk 0:02:27]} 18. dxe5 {[%clk 0:01:34]}  b4 {[%clk 0:02:19]} 19. Rad1 {[%clk 0:01:30]}  Qa5 {[%clk 0:02:16]} 20. f4 {[%clk 0:01:28]}  axb3 {[%clk 0:02:02]} 21. axb3 {[%clk 0:01:27]}  Rfd8 {[%clk 0:02:02]} 22. Kh2 {[%clk 0:01:24]}  Qc5 {[%clk 0:01:58]} 23. Qe4 {[%clk 0:01:16]}  h5 {[%clk 0:01:54]} 24. Bd4 {[%clk 0:01:13]}  Qa5 {[%clk 0:01:52]} 25. Ra1 {[%clk 0:01:01]}  Qc7 {[%clk 0:01:48]} 26. Bc5 {[%clk 0:01:00]}  Qb7 {[%clk 0:01:15]} 27. Rfd1 {[%clk 0:00:41]}  Rxd1 {[%clk 0:01:03]} 28. Rxd1 {[%clk 0:00:40]}  Bf8 {[%clk 0:01:02]} 29. Bxf8 {[%clk 0:00:38]}  Rxf8 {[%clk 0:01:02]} 30. Rd6 {[%clk 0:00:38]}  Rc8 {[%clk 0:00:59]} 31. Qd3 {[%clk 0:00:20]}  Qb6 {[%clk 0:00:56]} 32. Qf3 {[%clk 0:00:12]}  Rc7 {[%clk 0:00:45]} 33. Kg3 {[%clk 0:00:10]}  Qg1 {[%clk 0:00:36]} 34. Rxc6 {[%clk 0:00:06]}  h4+ {[%clk 0:00:25]} 35. Kxh4 {[%clk 0:00:05]}  Ra7 {[%clk 0:00:12]} 36. Rc8+ {[%clk 0:00:05]}  Kg7 {[%clk 0:00:12]} 37. Ra8 {[%clk 0:00:06]}  Qe1+ {[%clk 0:00:11]} 38. Kg4 {[%clk 0:00:05]}  Rxa8 {[%clk 0:00:11]} 39. Qxa8 {[%clk 0:00:06]}  Qd1+ {[%clk 0:00:10]} 40. Qf3 {[%clk 0:00:06]}  Qc2 {[%clk 0:00:10]} 41. Kg3 {[%clk 0:00:07]}  Qb2 {[%clk 0:00:10]} 42. h4 {[%clk 0:00:06]}  Qc2 {[%clk 0:00:10]} 43. Kh3 {[%clk 0:00:07]}  Qf5+ {[%clk 0:00:10]} 44. g4 {[%clk 0:00:07]}  Qb1 {[%clk 0:00:10]} 45. h5 {[%clk 0:00:08]}  gxh5 {[%clk 0:00:09]} 46. gxh5 {[%clk 0:00:08]}  Kh6 {[%clk 0:00:09]} 47. Qg3 {[%clk 0:00:08]}  Qf5+ {[%clk 0:00:09]} 48. Qg4 {[%clk 0:00:09]}  Qd3+ {[%clk 0:00:09]} 49. Kh4 {[%clk 0:00:09]}  Qe3 {[%clk 0:00:06]} 50. Qg5+ {[%clk 0:00:09]}  Kh7 {[%clk 0:00:06]} 51. Qg3 {[%clk 0:00:10]}  Qe4 {[%clk 0:00:05]} 52. Kg4 {[%clk 0:00:10]}  Qf5+ {[%clk 0:00:05]} 53. Kf3 {[%clk 0:00:10]}  Qd3+ {[%clk 0:00:05]} 54. Kg2 {[%clk 0:00:10]}  Qe2+ {[%clk 0:00:05]} 55. Kh1 {[%clk 0:00:09]}  Qd1+ {[%clk 0:00:05]} 56. Kh2 {[%clk 0:00:10]}  Qe2+ {[%clk 0:00:05]} 57. Qg2 {[%clk 0:00:10]}  Qe3 {[%clk 0:00:05]} 58. Qg3 {[%clk 0:00:10]}  Qd2+ {[%clk 0:00:05]} 59. Kh3 {[%clk 0:00:10]}  Qd1 {[%clk 0:00:05]} 60. h6 {[%clk 0:00:11]}  Qh5+ {[%clk 0:00:05]} 61. Qh4 {[%clk 0:00:11]}  Qf3+ {[%clk 0:00:05]} 62. Qg3 {[%clk 0:00:11]}  Qh5+ {[%clk 0:00:05]} 63. Kg2 {[%clk 0:00:12]}  Qe2+ {[%clk 0:00:05]} 64. Kh1 {[%clk 0:00:13]}  Qd1+ {[%clk 0:00:05]} 65. Qg1 {[%clk 0:00:13]}  Qh5+ {[%clk 0:00:04]} 66. Kg2 {[%clk 0:00:13]}  Qe2+ {[%clk 0:00:04]} 67. Kg3 {[%clk 0:00:13]}  Qd3+ {[%clk 0:00:04]} 68. Kg4 {[%clk 0:00:13]}  Qxb3 {[%clk 0:00:04]} 69. Kh5 {[%clk 0:00:14]}  Qf3+ {[%clk 0:00:02]} 70. Kh4 {[%clk 0:00:14]}  Qxf4+ {[%clk 0:00:02]} 71. Kh3 {[%clk 0:00:12]}  Qxh6+ {[%clk 0:00:01]} 72. Kg2 {[%clk 0:00:13]}  Qg6+ {[%clk 0:00:02]} 73. Kf1 {[%clk 0:00:14]}  Qxg1+ {[%clk 0:00:02]} 74. Kxg1 {[%clk 0:00:14]}  b3 {[%clk 0:00:03]} 75. c5 {[%clk 0:00:15]}  b2 {[%clk 0:00:03]} 76. c6 {[%clk 0:00:15]}  b1=Q+ {[%clk 0:00:04]} 0-1


[Site "https://www.chess.com"]

[Event "Titled Tuesday Blitz September 27 Early 2022"]
[White "Fernandez Hernandez, Gerardo"]
[Black "Hansen, Torbjorn Ringdal"]
[WhiteFideId "2207400"]
[BlackFideId "1501720"]
[WhiteElo "2175"]
[BlackElo "2383"]
[Result "1/2-1/2"]
[Round "04"]
[TimeControl "180+1"]
[Date "2022.09.27"]
[WhiteClock "0:00:03"]
[BlackClock "0:00:06"]

1. e4 {[%clk 0:02:57]}  c6 {[%clk 0:02:59]} 2. d4 {[%clk 0:02:56]}  d5 {[%clk 0:02:59]} 3. exd5 {[%clk 0:02:57]}  cxd5 {[%clk 0:02:59]} 4. c4 {[%clk 0:02:58]}  Nf6 {[%clk 0:02:58]} 5. Nc3 {[%clk 0:02:58]}  g6 {[%clk 0:02:59]} 6. Qb3 {[%clk 0:02:58]}  Bg7 {[%clk 0:02:58]} 7. cxd5 {[%clk 0:02:58]}  O-O {[%clk 0:02:59]} 8. Be2 {[%clk 0:02:58]}  Na6 {[%clk 0:02:58]} 9. Bf3 {[%clk 0:02:53]}  Nc7 {[%clk 0:02:58]} 10. Nge2 {[%clk 0:02:41]}  Rb8 {[%clk 0:02:57]} 11. Bf4 {[%clk 0:02:37]}  b5 {[%clk 0:02:53]} 12. Nxb5 {[%clk 0:02:03]}  Rxb5 {[%clk 0:02:45]} 13. Bxc7 {[%clk 0:02:02]}  Qd7 {[%clk 0:02:34]} 14. Qa4 {[%clk 0:01:13]}  Nxd5 {[%clk 0:02:13]} 15. Rc1 {[%clk 0:00:40]}  Nxc7 {[%clk 0:01:58]} 16. Bc6 {[%clk 0:00:39]}  Qf5 {[%clk 0:01:48]} 17. Bxb5 {[%clk 0:00:28]}  Nxb5 {[%clk 0:01:47]} 18. Rc5 {[%clk 0:00:27]}  Qb1+ {[%clk 0:01:47]} 19. Rc1 {[%clk 0:00:27]}  Qxb2 {[%clk 0:01:47]} 20. O-O {[%clk 0:00:21]}  Qxe2 {[%clk 0:01:44]} 21. Rfe1 {[%clk 0:00:19]}  Nxd4 {[%clk 0:01:37]} 22. Rxe2 {[%clk 0:00:15]}  Nxe2+ {[%clk 0:01:37]} 23. Kf1 {[%clk 0:00:16]}  Nxc1 {[%clk 0:01:37]} 24. Qc4 {[%clk 0:00:15]}  Bh6 {[%clk 0:01:31]} 25. f4 {[%clk 0:00:13]}  Nd3 {[%clk 0:01:21]} 26. Qxd3 {[%clk 0:00:12]}  Bxf4 {[%clk 0:01:22]} 27. g3 {[%clk 0:00:11]}  Bd6 {[%clk 0:01:21]} 28. Qe3 {[%clk 0:00:09]}  a5 {[%clk 0:01:19]} 29. Qa7 {[%clk 0:00:08]}  Bh3+ {[%clk 0:01:15]} 30. Kf2 {[%clk 0:00:07]}  Rc8 {[%clk 0:01:13]} 31. Qxa5 {[%clk 0:00:07]}  Rc2+ {[%clk 0:01:13]} 32. Kf3 {[%clk 0:00:06]}  Bg2+ {[%clk 0:01:04]} 33. Ke3 {[%clk 0:00:06]}  Bh3 {[%clk 0:00:53]} 34. a4 {[%clk 0:00:05]}  Be6 {[%clk 0:00:50]} 35. Qd8+ {[%clk 0:00:04]}  Kg7 {[%clk 0:00:49]} 36. a5 {[%clk 0:00:04]}  Ra2 {[%clk 0:00:49]} 37. Qb6 {[%clk 0:00:03]}  Bc4 {[%clk 0:00:44]} 38. a6 {[%clk 0:00:01]}  Rxa6 {[%clk 0:00:40]} 39. Qd4+ {[%clk 0:00:02]}  f6 {[%clk 0:00:38]} 40. Qxc4 {[%clk 0:00:03]}  Ra3+ {[%clk 0:00:38]} 41. Ke4 {[%clk 0:00:03]}  h5 {[%clk 0:00:35]} 42. Kd5 {[%clk 0:00:04]}  Ra5+ {[%clk 0:00:34]} 43. Ke6 {[%clk 0:00:04]}  Re5+ {[%clk 0:00:34]} 44. Kd7 {[%clk 0:00:04]}  g5 {[%clk 0:00:32]} 45. Qc8 {[%clk 0:00:04]}  h4 {[%clk 0:00:30]} 46. Ke8 {[%clk 0:00:05]}  hxg3 {[%clk 0:00:29]} 47. hxg3 {[%clk 0:00:04]}  Re3 {[%clk 0:00:30]} 48. Qc2 {[%clk 0:00:04]}  Rxg3 {[%clk 0:00:28]} 49. Qc4 {[%clk 0:00:04]}  g4 {[%clk 0:00:26]} 50. Qf7+ {[%clk 0:00:05]}  Kh6 {[%clk 0:00:26]} 51. Qf8+ {[%clk 0:00:05]}  Kg5 {[%clk 0:00:26]} 52. Qg7+ {[%clk 0:00:04]}  Kf4 {[%clk 0:00:26]} 53. Qh6+ {[%clk 0:00:05]}  Kf3 {[%clk 0:00:26]} 54. Qh1+ {[%clk 0:00:04]}  Rg2 {[%clk 0:00:25]} 55. Qf1+ {[%clk 0:00:04]}  Kg3 {[%clk 0:00:25]} 56. Qe1+ {[%clk 0:00:05]}  Kh3 {[%clk 0:00:23]} 57. Qh1+ {[%clk 0:00:05]}  Rh2 {[%clk 0:00:24]} 58. Qf1+ {[%clk 0:00:05]}  Kh4 {[%clk 0:00:24]} 59. Qe1+ {[%clk 0:00:03]}  Bg3 {[%clk 0:00:21]} 60. Qxe7 {[%clk 0:00:03]}  Kh3 {[%clk 0:00:18]} 61. Qh7+ {[%clk 0:00:03]}  Kg2 {[%clk 0:00:18]} 62. Qc2+ {[%clk 0:00:03]}  Bf2 {[%clk 0:00:16]} 63. Qe4+ {[%clk 0:00:03]}  Kg1 {[%clk 0:00:15]} 64. Qxg4+ {[%clk 0:00:03]}  Rg2 {[%clk 0:00:15]} 65. Qd1+ {[%clk 0:00:03]}  Kh2 {[%clk 0:00:14]} 66. Qh5+ {[%clk 0:00:04]}  Kg1 {[%clk 0:00:14]} 67. Qd1+ {[%clk 0:00:04]}  Kh2 {[%clk 0:00:14]} 68. Qh5+ {[%clk 0:00:04]}  Kg3 {[%clk 0:00:14]} 69. Qf5 {[%clk 0:00:04]}  Be3 {[%clk 0:00:11]} 70. Qe4 {[%clk 0:00:04]}  Re2 {[%clk 0:00:10]} 71. Qg6+ {[%clk 0:00:04]}  Bg5+ {[%clk 0:00:09]} 72. Kf7 {[%clk 0:00:04]}  Re5 {[%clk 0:00:10]} 73. Qh5 {[%clk 0:00:04]}  Kf4 {[%clk 0:00:10]} 74. Qd1 {[%clk 0:00:04]}  Kg3 {[%clk 0:00:09]} 75. Qg1+ {[%clk 0:00:03]}  Kf4 {[%clk 0:00:06]} 1/2-1/2


[Site "https://www.chess.com"]

[Event "Titled Tuesday Blitz September 27 Early 2022"]
[White "Fromm, Marius"]
[Black "Hardaway, Brewington"]
[WhiteFideId "12993190"]
[BlackFideId "30941849"]
[WhiteElo "2312"]
[BlackElo "1813"]
[Result "0-1"]
[Round "04"]
[TimeControl "180+1"]
[Date "2022.09.27"]
[WhiteClock "0:00:01"]
[BlackClock "0:00:27"]

1. e4 {[%clk 0:03:00]}  c5 {[%clk 0:02:57]} 2. Nf3 {[%clk 0:03:01]}  d6 {[%clk 0:02:57]} 3. d4 {[%clk 0:03:01]}  cxd4 {[%clk 0:02:57]} 4. Nxd4 {[%clk 0:03:01]}  Nf6 {[%clk 0:02:58]} 5. Nc3 {[%clk 0:03:02]}  Nc6 {[%clk 0:02:58]} 6. f3 {[%clk 0:03:01]}  g6 {[%clk 0:02:58]} 7. Be3 {[%clk 0:02:55]}  Bg7 {[%clk 0:02:58]} 8. Qd2 {[%clk 0:02:56]}  O-O {[%clk 0:02:57]} 9. O-O-O {[%clk 0:02:56]}  Bd7 {[%clk 0:02:48]} 10. g4 {[%clk 0:02:53]}  Rc8 {[%clk 0:02:45]} 11. h4 {[%clk 0:02:52]}  h5 {[%clk 0:02:44]} 12. gxh5 {[%clk 0:02:38]}  Nxh5 {[%clk 0:02:44]} 13. Rg1 {[%clk 0:02:37]}  Ne5 {[%clk 0:02:41]} 14. f4 {[%clk 0:02:28]}  Ng4 {[%clk 0:02:15]} 15. Be2 {[%clk 0:02:23]}  Nxe3 {[%clk 0:02:12]} 16. Qxe3 {[%clk 0:02:23]}  Rxc3 {[%clk 0:01:54]} 17. bxc3 {[%clk 0:02:19]}  Qa5 {[%clk 0:01:49]} 18. Rg5 {[%clk 0:01:30]}  Qa3+ {[%clk 0:01:43]} 19. Kb1 {[%clk 0:01:09]}  Nxf4 {[%clk 0:01:06]} 20. Qxf4 {[%clk 0:01:09]}  e5 {[%clk 0:01:06]} 21. Qc1 {[%clk 0:00:51]}  Qxc1+ {[%clk 0:01:02]} 22. Kxc1 {[%clk 0:00:43]}  exd4 {[%clk 0:01:02]} 23. cxd4 {[%clk 0:00:43]}  Bh6 {[%clk 0:01:02]} 24. Kb2 {[%clk 0:00:37]}  Bxg5 {[%clk 0:01:02]} 25. hxg5 {[%clk 0:00:38]}  Re8 {[%clk 0:01:02]} 26. Bf3 {[%clk 0:00:31]}  Bc6 {[%clk 0:01:01]} 27. Re1 {[%clk 0:00:30]}  Kg7 {[%clk 0:00:58]} 28. Kc3 {[%clk 0:00:27]}  Rc8 {[%clk 0:00:55]} 29. Kd2 {[%clk 0:00:25]}  Ba4 {[%clk 0:00:56]} 30. c3 {[%clk 0:00:25]}  Bc6 {[%clk 0:00:54]} 31. d5 {[%clk 0:00:24]}  Ba4 {[%clk 0:00:45]} 32. e5 {[%clk 0:00:25]}  dxe5 {[%clk 0:00:42]} 33. Rxe5 {[%clk 0:00:26]}  Rd8 {[%clk 0:00:39]} 34. Re7 {[%clk 0:00:22]}  Rd7 {[%clk 0:00:39]} 35. Rxd7 {[%clk 0:00:16]}  Bxd7 {[%clk 0:00:40]} 36. Ke3 {[%clk 0:00:15]}  f6 {[%clk 0:00:40]} 37. Kf4 {[%clk 0:00:15]}  Kf7 {[%clk 0:00:32]} 38. Bg2 {[%clk 0:00:05]}  b6 {[%clk 0:00:30]} 39. a3 {[%clk 0:00:05]}  Ke7 {[%clk 0:00:30]} 40. d6+ {[%clk 0:00:01]}  Ke6 {[%clk 0:00:27]} 41. gxf6 {[%clk 0:00:01]}  Kxf6 {[%clk 0:00:27]} 0-1


[Site "https://www.chess.com"]

[Event "Titled Tuesday Blitz September 27 Early 2022"]
[White "Gareyev, Timur"]
[Black "Omelja, Artem"]
[WhiteFideId "14200937"]
[BlackFideId "14119846"]
[WhiteElo "2552"]
[BlackElo "2382"]
[Result "1-0"]
[Round "04"]
[TimeControl "180+1"]
[Date "2022.09.27"]
[WhiteClock "0:00:13"]
[BlackClock "0:00:01"]

1. c4 {[%clk 0:03:00]}  c6 {[%clk 0:02:56]} 2. Nf3 {[%clk 0:02:57]}  d5 {[%clk 0:02:55]} 3. g3 {[%clk 0:02:53]}  dxc4 {[%clk 0:02:56]} 4. Bg2 {[%clk 0:02:52]}  b5 {[%clk 0:02:55]} 5. O-O {[%clk 0:02:42]}  Nf6 {[%clk 0:02:50]} 6. d3 {[%clk 0:02:42]}  cxd3 {[%clk 0:02:44]} 7. Ne5 {[%clk 0:02:42]}  Bb7 {[%clk 0:02:19]} 8. Nc3 {[%clk 0:02:37]}  a6 {[%clk 0:01:58]} 9. a4 {[%clk 0:02:37]}  e6 {[%clk 0:01:23]} 10. Nxd3 {[%clk 0:02:17]}  Nbd7 {[%clk 0:01:14]} 11. Bf4 {[%clk 0:02:12]}  Qc8 {[%clk 0:00:58]} 12. Rc1 {[%clk 0:02:08]}  b4 {[%clk 0:00:42]} 13. Ne4 {[%clk 0:02:04]}  Nxe4 {[%clk 0:00:42]} 14. Bxe4 {[%clk 0:02:04]}  c5 {[%clk 0:00:43]} 15. Bf3 {[%clk 0:01:33]}  Bxf3 {[%clk 0:00:34]} 16. exf3 {[%clk 0:01:34]}  Qb7 {[%clk 0:00:29]} 17. Ne5 {[%clk 0:01:14]}  Nxe5 {[%clk 0:00:26]} 18. Bxe5 {[%clk 0:01:15]}  Rd8 {[%clk 0:00:24]} 19. Qe2 {[%clk 0:01:14]}  f6 {[%clk 0:00:21]} 20. Bf4 {[%clk 0:01:14]}  e5 {[%clk 0:00:19]} 21. Be3 {[%clk 0:01:13]}  Be7 {[%clk 0:00:14]} 22. f4 {[%clk 0:01:14]}  O-O {[%clk 0:00:12]} 23. fxe5 {[%clk 0:01:13]}  fxe5 {[%clk 0:00:13]} 24. Bxc5 {[%clk 0:01:13]}  Bxc5 {[%clk 0:00:12]} 25. Rxc5 {[%clk 0:01:14]}  e4 {[%clk 0:00:13]} 26. Re5 {[%clk 0:00:56]}  Rde8 {[%clk 0:00:12]} 27. Qc4+ {[%clk 0:00:54]}  Kh8 {[%clk 0:00:12]} 28. Qc5 {[%clk 0:00:53]}  h6 {[%clk 0:00:07]} 29. Re1 {[%clk 0:00:52]}  Rxe5 {[%clk 0:00:03]} 30. Qxe5 {[%clk 0:00:45]}  Qc6 {[%clk 0:00:03]} 31. Qxe4 {[%clk 0:00:43]}  Qxa4 {[%clk 0:00:03]} 32. Qe7 {[%clk 0:00:35]}  Rg8 {[%clk 0:00:02]} 33. h4 {[%clk 0:00:32]}  Qb3 {[%clk 0:00:02]} 34. Qe5 {[%clk 0:00:23]}  a5 {[%clk 0:00:01]} 35. Re3 {[%clk 0:00:19]}  Qd1+ {[%clk 0:00:01]} 36. Kg2 {[%clk 0:00:19]}  a4 {[%clk 0:00:02]} 37. Qa5 {[%clk 0:00:15]}  Rb8 {[%clk 0:00:01]} 38. Qe5 {[%clk 0:00:13]} 1-0


[Site "https://www.chess.com"]

[Event "Titled Tuesday Blitz September 27 Early 2022"]
[White "Gilmanov, Mansur"]
[Black "Melikhov, Evgeny V."]
[WhiteFideId "4166868"]
[BlackFideId "4122046"]
[WhiteElo "2377"]
[BlackElo "1963"]
[Result "1-0"]
[Round "04"]
[TimeControl "180+1"]
[Date "2022.09.27"]
[WhiteClock "0:01:23"]
[BlackClock "0:00:33"]

1. d4 {[%clk 0:02:58]}  Nf6 {[%clk 0:02:59]} 2. Bg5 {[%clk 0:02:58]}  e6 {[%clk 0:02:59]} 3. e3 {[%clk 0:02:59]}  h6 {[%clk 0:02:56]} 4. Bh4 {[%clk 0:02:58]}  c5 {[%clk 0:02:56]} 5. c3 {[%clk 0:02:58]}  cxd4 {[%clk 0:02:53]} 6. exd4 {[%clk 0:02:59]}  Be7 {[%clk 0:02:53]} 7. Nd2 {[%clk 0:02:59]}  O-O {[%clk 0:02:52]} 8. Bd3 {[%clk 0:03:00]}  b6 {[%clk 0:02:52]} 9. Ngf3 {[%clk 0:03:00]}  Ba6 {[%clk 0:02:52]} 10. Bxa6 {[%clk 0:02:57]}  Nxa6 {[%clk 0:02:52]} 11. O-O {[%clk 0:02:58]}  Nc7 {[%clk 0:02:48]} 12. Bxf6 {[%clk 0:02:53]}  Bxf6 {[%clk 0:02:48]} 13. Ne4 {[%clk 0:02:54]}  Be7 {[%clk 0:02:40]} 14. Ne5 {[%clk 0:02:54]}  Nd5 {[%clk 0:02:33]} 15. Qf3 {[%clk 0:02:45]}  Nf6 {[%clk 0:02:30]} 16. Nxf6+ {[%clk 0:02:35]}  Bxf6 {[%clk 0:02:30]} 17. Rae1 {[%clk 0:02:34]}  d6 {[%clk 0:02:25]} 18. Ng4 {[%clk 0:02:32]}  Be7 {[%clk 0:02:20]} 19. Qg3 {[%clk 0:02:30]}  Kh8 {[%clk 0:02:12]} 20. Re3 {[%clk 0:02:21]}  Bh4 {[%clk 0:01:35]} 21. Qh3 {[%clk 0:02:17]}  f5 {[%clk 0:01:21]} 22. Nxh6 {[%clk 0:02:17]}  gxh6 {[%clk 0:01:21]} 23. Rxe6 {[%clk 0:02:13]}  Rf6 {[%clk 0:01:07]} 24. Rfe1 {[%clk 0:02:12]}  Rxe6 {[%clk 0:01:01]} 25. Rxe6 {[%clk 0:02:13]}  Kg7 {[%clk 0:00:58]} 26. g3 {[%clk 0:02:00]}  Bf6 {[%clk 0:00:52]} 27. Qxf5 {[%clk 0:01:59]}  Qf8 {[%clk 0:00:47]} 28. Qg4+ {[%clk 0:01:47]}  Kh8 {[%clk 0:00:44]} 29. Qf4 {[%clk 0:01:23]}  Bg7 {[%clk 0:00:39]} 30. Qxd6 {[%clk 0:01:22]}  Qxd6 {[%clk 0:00:38]} 31. Rxd6 {[%clk 0:01:23]}  Re8 {[%clk 0:00:38]} 32. Kf1 {[%clk 0:01:23]}  Re7 {[%clk 0:00:36]} 33. f4 {[%clk 0:01:22]}  Re3 {[%clk 0:00:33]} 34. Kf2 {[%clk 0:01:22]}  Rd3 {[%clk 0:00:33]} 35. Ke2 {[%clk 0:01:23]} 1-0


[Site "https://www.chess.com"]